Workbook

Sheet 管理端-移网质量类
A1: 2023年客服投诉清单各地市投诉率情况（管理端-移网质量类）
A2: 地市 | B2: 1日 | C2: 2日 | D2: 3日 | E2: 4日 | F2: 5日 | G2: 6日 | H2: 7日 | I2: 8日 | J2: 9日 | K2: 10日 | L2: 11日 | M2: 12日 | N2: 13日 | O2: 14日 | P2: 15日 | Q2: 16日 | R2: 17日 | S2: 18日 | T2: 19日 | U2: 20日 | V2: 21日 | W2: 22日 | X2: 23日 | Y2: 投诉总量 | Z2: 用户数 | AA2: 目前万投率 | AB2: 本月预测 | AC2: 目标值 | AD2: 与目标差距 | AE2: 地市
A3: 保定 | B3: 32 | C3: 35 | D3: 34 | E3: 25 | F3: 31 | G3: 22 | H3: 34 | I3: 29 | J3: 24 | K3: 37 | L3: 39 | M3: 34 | N3: 36 | O3: 39 | P3: 23 | Q3: 26 | R3: 22 | S3: 23 | T3: 30 | U3: 31 | V3: 23 | W3: 30 | X3: 26 | Y3: 685 | Z3: 248.76 | AA3: =Y3/Z3 -> 2.753658144 | AB3: =AA3*30/23 -> 3.591728014 | AC3: 4.5 | AD3: =AB3-AC3 -> -0.9082719856 | AE3: 保定
A4: 沧州 | B4: 25 | C4: 38 | D4: 26 | E4: 34 | F4: 43 | G4: 45 | H4: 38 | I4: 41 | J4: 53 | K4: 56 | L4: 38 | M4: 47 | N4: 31 | O4: 34 | P4: 26 | Q4: 53 | R4: 32 | S4: 45 | T4: 32 | U4: 27 | V4: 44 | W4: 15 | X4: 30 | Y4: 853 | Z4: 232.91 | AA4: =Y4/Z4 -> 3.662358851 | AB4: =AA4*30/23 -> 4.776989806 | AC4: 4.4 | AD4: =AB4-AC4 -> 0.3769898057 | AE4: 沧州
A5: 承德 | B5: 11 | C5: 18 | D5: 8 | E5: 14 | F5: 17 | G5: 11 | H5: 21 | I5: 16 | J5: 20 | K5: 20 | L5: 30 | M5: 13 | N5: 23 | O5: 27 | P5: 13 | Q5: 15 | R5: 25 | S5: 87 | T5: 31 | U5: 21 | V5: 19 | W5: 13 | X5: 17 | Y5: 490 | Z5: 101.93 | AA5: 4.807220642 | AB5: 6.270287793 | AC5: 4.4 | AD5: 1.870287793 | AE5: 承德
A6: 邯郸 | B6: 14 | C6: 19 | D6: 36 | E6: 49 | F6: 43 | G6: 28 | H6: 26 | I6: 24 | J6: 25 | K6: 51 | L6: 55 | M6: 38 | N6: 39 | O6: 49 | P6: 23 | Q6: 33 | R6: 32 | S6: 36 | T6: 37 | U6: 36 | V6: 26 | W6: 30 | X6: 18 | Y6: 767 | Z6: 272.59 | AA6: 2.813749587 | AB6: 3.670108157 | AC6: 4.4 | AD6: -0.7298918427 | AE6: 邯郸
A7: 衡水 | B7: 15 | C7: 11 | D7: 20 | E7: 34 | F7: 14 | G7: 13 | H7: 25 | I7: 8 | J7: 15 | K7: 17 | L7: 40 | M7: 15 | N7: 17 | O7: 20 | P7: 15 | Q7: 13 | R7: 33 | S7: 25 | T7: 20 | U7: 11 | V7: 26 | W7: 11 | X7: 10 | Y7: 428 | Z7: 154.13 | AA7: 2.776876663 | AB7: 3.622013038 | AC7: 3.4 | AD7: 0.2220130381 | AE7: 衡水
A8: 廊坊 | B8: 19 | C8: 13 | D8: 34 | E8: 22 | F8: 25 | G8: 45 | H8: 24 | I8: 22 | J8: 16 | K8: 28 | L8: 35 | M8: 18 | N8: 24 | O8: 9 | P8: 14 | Q8: 18 | R8: 18 | S8: 26 | T8: 13 | U8: 16 | V8: 13 | W8: 28 | X8: 20 | Y8: 500 | Z8: 163.68 | AA8: 3.054740958 | AB8: 3.984444728 | AC8: 4.7 | AD8: -0.7155552722 | AE8: 廊坊
A9: 秦皇岛 | B9: 15 | C9: 16 | D9: 28 | E9: 10 | F9: 15 | G9: 21 | H9: 12 | I9: 13 | J9: 21 | K9: 15 | L9: 10 | M9: 13 | N9: 8 | O9: 11 | P9: 8 | Q9: 5 | R9: 10 | S9: 13 | T9: 12 | U9: 14 | V9: 17 | W9: 9 | X9: 8 | Y9: 304 | Z9: 103.12 | AA9: 2.948021722 | AB9: 3.845245725 | AC9: 4.3 | AD9: -0.4547542753 | AE9: 秦皇岛
A10: 石家庄 | B10: 129 | C10: 131 | D10: 108 | E10: 159 | F10: 105 | G10: 88 | H10: 117 | I10: 92 | J10: 68 | K10: 105 | L10: 80 | M10: 77 | N10: 92 | O10: 124 | P10: 69 | Q10: 58 | R10: 72 | S10: 100 | T10: 65 | U10: 64 | V10: 54 | W10: 49 | X10: 54 | Y10: 2060 | Z10: 366.35 | AA10: 5.623038078 | AB10: 7.334397493 | AC10: 4.8 | AD10: 2.534397493 | AE10: 石家庄
A11: 唐山 | B11: 26 | C11: 14 | D11: 59 | E11: 39 | F11: 44 | G11: 39 | H11: 49 | I11: 30 | J11: 25 | K11: 40 | L11: 34 | M11: 41 | N11: 37 | O11: 49 | P11: 32 | Q11: 23 | R11: 60 | S11: 53 | T11: 32 | U11: 36 | V11: 40 | W11: 12 | X11: 29 | Y11: 843 | Z11: 244.01 | AA11: 3.454776444 | AB11: 4.506230144 | AC11: 4.5 | AD11: 0.006230143811 | AE11: 唐山
A12: 邢台 | B12: 17 | C12: 12 | D12: 24 | E12: 25 | F12: 8 | G12: 34 | H12: 32 | I12: 27 | J12: 13 | K12: 34 | L12: 27 | M12: 20 | N12: 38 | O12: 31 | P12: 9 | Q12: 12 | R12: 31 | S12: 29 | T12: 25 | U12: 26 | V12: 26 | W12: 22 | X12: 17 | Y12: 539 | Z12: 176.5 | AA12: 3.053824363 | AB12: 3.983249169 | AC12: 4 | AD12: -0.01675083138 | AE12: 邢台
A13: 雄安 | B13: 5 | C13: 2 | D13: 11 | E13: 3 | F13: 7 | G13: 4 | H13: 4 | I13: 8 | J13: 5 | K13: 11 | L13: 6 | M13: 12 | N13: 13 | O13: 5 | P13: 7 | Q13: 4 | R13: 5 | S13: 9 | T13: 6 | U13: 4 | V13: 8 | W13: 8 | X13: 3 | Y13: 150 | Z13: 25.82 | AA13: 5.809450039 | AB13: 7.577543529 | AC13: 6 | AD13: 1.577543529 | AE13: 雄安
A14: 张家口 | B14: 11 | C14: 17 | D14: 22 | E14: 17 | F14: 14 | G14: 14 | H14: 11 | I14: 17 | J14: 16 | K14: 14 | L14: 19 | M14: 21 | N14: 24 | O14: 9 | P14: 18 | Q14: 18 | R14: 17 | S14: 13 | T14: 16 | U14: 10 | V14: 22 | W14: 15 | X14: 8 | Y14: 363 | Z14: 96.83 | AA14: 3.74883817 | AB14: 4.889788917 | AC14: 4.4 | AD14: 0.4897889174 | AE14: 张家口
A15: 全省 | B15: 319 | C15: 326 | D15: 410 | E15: 431 | F15: 366 | G15: 364 | H15: 393 | I15: 327 | J15: 301 | K15: 428 | L15: 413 | M15: 349 | N15: 382 | O15: 407 | P15: 257 | Q15: 278 | R15: 357 | S15: 459 | T15: 319 | U15: 296 | V15: 318 | W15: 242 | X15: 240 | Y15: 7982 | Z15: 2186.63 | AA15: 3.650366088 | AB15: =AA15*30/23 -> 4.761347072 | AC15: 4.4 | AD15: 0.3613470719 | AE15: 总计

Sheet 管理端-重复投诉率
A1: 重复投诉率（1-23）
B2: 重复投诉工单数 | D2: 重复投诉率 | F2: 增量 | L2: 地市 | M2: 总工单数 | P2: 重复投诉工单数 | R2: 重复投诉率 | T2: 增量
A3: 地市 | B3: 4月截止20日 | C3: 4月截止23日 | D3: 4月截止20日 | E3: 4月截止23日 | F3: 重复投诉工单数 | G3: 重复投诉率 | L3: 地市 | M3: 4月截止20日 | N3: 4月截止23日 | O3: 地市 | P3: 4月截止20日 | Q3: 4月截止23日 | R3: 4月截止20日 | S3: 4月截止23日 | T3: 重复投诉工单数 | U3: 重复投诉率
A4: 唐山 | B4: 33 | C4: 45 | D4: 0.04330708661 | E4: 0.05338078292 | F4: 12 | G4: 0.0100736963 | L4: 保定 | M4: 606 | N4: 685 | O4: 保定 | P4: 26 | Q4: 31 | R4: =P4/M4 -> 0.04290429043 | S4: =Q4/N4 -> 0.04525547445 | T4: =Q4-P4 -> 5 | U4: =S4-R4 -> 0.002351184024
A5: 沧州 | B5: 38 | C5: 50 | D5: 0.0497382199 | E5: 0.05861664713 | F5: 12 | G5: 0.008878427232 | L5: 沧州 | M5: 764 | N5: 853 | O5: 沧州 | P5: 38 | Q5: 50 | R5: =P5/M5 -> 0.0497382199 | S5: =Q5/N5 -> 0.05861664713 | T5: =Q5-P5 -> 12 | U5: =S5-R5 -> 0.008878427232
A6: 廊坊 | B6: 36 | C6: 43 | D6: 0.08200455581 | E6: 0.086 | F6: 7 | G6: 0.003995444191 | L6: 承德 | M6: 441 | N6: 490 | O6: 承德 | P6: 15 | Q6: 18 | R6: =P6/M6 -> 0.03401360544 | S6: =Q6/N6 -> 0.03673469388 | T6: =Q6-P6 -> 3 | U6: =S6-R6 -> 0.002721088435
A7: 张家口 | B7: 13 | C7: 16 | D7: 0.04088050314 | E7: 0.04407713499 | F7: 3 | G7: 0.003196631842 | L7: 邯郸 | M7: 693 | N7: 767 | O7: 邯郸 | P7: 40 | Q7: 43 | R7: =P7/M7 -> 0.05772005772 | S7: =Q7/N7 -> 0.05606258149 | T7: =Q7-P7 -> 3 | U7: =S7-R7 -> -0.001657476234
A8: 衡水 | B8: 14 | C8: 17 | D8: 0.03674540682 | E8: 0.03971962617 | F8: 3 | G8: 0.002974219344 | L8: 衡水 | M8: 381 | N8: 428 | O8: 衡水 | P8: 14 | Q8: 17 | R8: =P8/M8 -> 0.03674540682 | S8: =Q8/N8 -> 0.03971962617 | T8: =Q8-P8 -> 3 | U8: =S8-R8 -> 0.002974219344
A9: 承德 | B9: 15 | C9: 18 | D9: 0.03401360544 | E9: 0.03673469388 | F9: 3 | G9: 0.002721088435 | L9: 廊坊 | M9: 439 | N9: 500 | O9: 廊坊 | P9: 36 | Q9: 43 | R9: =P9/M9 -> 0.08200455581 | S9: =Q9/N9 -> 0.086 | T9: =Q9-P9 -> 7 | U9: =S9-R9 -> 0.003995444191
A10: 保定 | B10: 26 | C10: 31 | D10: 0.04290429043 | E10: 0.04525547445 | F10: 5 | G10: 0.002351184024 | L10: 秦皇岛 | M10: 270 | N10: 304 | O10: 秦皇岛 | P10: 4 | Q10: 4 | R10: =P10/M10 -> 0.01481481481 | S10: =Q10/N10 -> 0.01315789474 | T10: =Q10-P10 -> 0 | U10: =S10-R10 -> -0.001656920078
A11: 石家庄 | B11: 134 | C11: 149 | D11: 0.070415134 | E11: 0.07233009709 | F11: 15 | G11: 0.001914963088 | L11: 全省 | M11: 7182 | N11: 7982 | O11: 全省 | P11: 379 | Q11: 445 | R11: =P11/M11 -> 0.05277081593 | S11: =Q11/N11 -> 0.05575043849 | T11: =Q11-P11 -> 66 | U11: =S11-R11 -> 0.002979622558
A12: 雄安 | B12: 7 | C12: 8 | D12: 0.0534351145 | E12: 0.05333333333 | F12: 1 | G12: -0.0001017811705 | L12: 石家庄 | M12: 1903 | N12: 2060 | O12: 石家庄 | P12: 134 | Q12: 149 | R12: =P12/M12 -> 0.070415134 | S12: =Q12/N12 -> 0.07233009709 | T12: =Q12-P12 -> 15 | U12: =S12-R12 -> 0.001914963088
A13: 邢台 | B13: 19 | C13: 21 | D13: 0.04008438819 | E13: 0.03896103896 | F13: 2 | G13: -0.001123349225 | L13: 唐山 | M13: 762 | N13: 843 | O13: 唐山 | P13: 33 | Q13: 45 | R13: =P13/M13 -> 0.04330708661 | S13: =Q13/N13 -> 0.05338078292 | T13: =Q13-P13 -> 12 | U13: =S13-R13 -> 0.0100736963
A14: 秦皇岛 | B14: 4 | C14: 4 | D14: 0.01481481481 | E14: 0.01315789474 | F14: 0 | G14: -0.001656920078 | L14: 邢台 | M14: 474 | N14: 539 | O14: 邢台 | P14: 19 | Q14: 21 | R14: =P14/M14 -> 0.04008438819 | S14: =Q14/N14 -> 0.03896103896 | T14: =Q14-P14 -> 2 | U14: =S14-R14 -> -0.001123349225
A15: 邯郸 | B15: 40 | C15: 43 | D15: 0.05772005772 | E15: 0.05606258149 | F15: 3 | G15: -0.001657476234 | L15: 雄安 | M15: 131 | N15: 150 | O15: 雄安 | P15: 7 | Q15: 8 | R15: =P15/M15 -> 0.0534351145 | S15: =Q15/N15 -> 0.05333333333 | T15: =Q15-P15 -> 1 | U15: =S15-R15 -> -0.0001017811705
A16: 全省 | B16: 379 | C16: 445 | D16: 0.05277081593 | E16: 0.05575043849 | F16: 66 | G16: 0.002979622558 | L16: 张家口 | M16: 318 | N16: 363 | O16: 张家口 | P16: 13 | Q16: 16 | R16: =P16/M16 -> 0.04088050314 | S16: =Q16/N16 -> 0.04407713499 | T16: =Q16-P16 -> 3 | U16: =S16-R16 -> 0.003196631842

Sheet 投诉处理时长、超时工单概况
A1: 超时工单情况（1-23） | G1: 平均处理时长（1-23） | N1: 超时工单情况 | S1: 平均处理时长
A2: 地市 | B2: 工单数 | C2: 超时工单数 | D2: 超时工单占比 | G2: 地市 | H2: 3月 | I2: 4月 | J2: 涨幅 | N2: 地市 | O2: 工单数 | P2: 超时工单数 | Q2: 超时工单占比 | S2: 地市 | T2: 3月 | U2: 4月 | V2: 涨幅
A3: 雄安 | B3: 150 | C3: 71 | D3: 0.4733333333 | G3: 雄安 | H3: 43.87644658 | I3: 54.55711667 | J3: 10.68067009 | N3: 保定 | O3: 685 | P3: 229 | Q3: =P3/O3 -> 0.3343065693 | S3: 保定 | T3: 41.17764552 | U3: 40.6746176 | V3: =U3-T3 -> -0.5030279199
A4: 石家庄 | B4: 2060 | C4: 955 | D4: 0.463592233 | G4: 石家庄 | H4: 44.49351063 | I4: 45.91690237 | J4: 1.423391744 | N4: 沧州 | O4: 853 | P4: 233 | Q4: =P4/O4 -> 0.2731535756 | S4: 沧州 | T4: 30.27540983 | U4: 33.50405432 | V4: =U4-T4 -> 3.228644487
A5: 张家口 | B5: 363 | C5: 161 | D5: 0.4435261708 | G5: 张家口 | H5: 44.12274872 | I5: 43.95181512 | J5: -0.170933597 | N5: 承德 | O5: 490 | P5: 64 | Q5: 0.1306122449 | S5: 承德 | T5: 22.22253309 | U5: 24.18193027 | V5: 1.959397183
A6: 唐山 | B6: 843 | C6: 366 | D6: 0.4341637011 | G6: 邯郸 | H6: 42.24187972 | I6: 43.95062038 | J6: 1.708740663 | N6: 邯郸 | O6: 767 | P6: 299 | Q6: 0.3898305085 | S6: 邯郸 | T6: 42.24187972 | U6: 43.95062038 | V6: 1.708740663
A7: 邢台 | B7: 539 | C7: 216 | D7: 0.400742115 | G7: 邢台 | H7: 47.8112314 | I7: 43.35727273 | J7: -4.453958669 | N7: 衡水 | O7: 428 | P7: 165 | Q7: 0.3855140187 | S7: 衡水 | T7: 33.88823258 | U7: 34.99514473 | V7: 1.106912152
A8: 廊坊 | B8: 500 | C8: 200 | D8: 0.4 | G8: 秦皇岛 | H8: 43.3328465 | I8: 42.04744792 | J8: -1.285398582 | N8: 廊坊 | O8: 500 | P8: 200 | Q8: 0.4 | S8: 廊坊 | T8: 52.31163316 | U8: 38.86263611 | V8: -13.44899704
A9: 邯郸 | B9: 767 | C9: 299 | D9: 0.3898305085 | G9: 保定 | H9: 41.17764552 | I9: 40.6746176 | J9: -0.5030279199 | N9: 秦皇岛 | O9: 304 | P9: 100 | Q9: 0.3289473684 | S9: 秦皇岛 | T9: 43.3328465 | U9: 42.04744792 | V9: -1.285398582
A10: 衡水 | B10: 428 | C10: 165 | D10: 0.3855140187 | G10: 唐山 | H10: 63.83857129 | I10: 40.6086378 | J10: -23.22993349 | N10: 石家庄 | O10: 2060 | P10: 955 | Q10: 0.463592233 | S10: 石家庄 | T10: 44.49351063 | U10: 45.91690237 | V10: 1.423391744
A11: 保定 | B11: 685 | C11: 229 | D11: 0.3343065693 | G11: 廊坊 | H11: 52.31163316 | I11: 38.86263611 | J11: -13.44899704 | N11: 唐山 | O11: 843 | P11: 366 | Q11: 0.4341637011 | S11: 唐山 | T11: 63.83857129 | U11: 40.6086378 | V11: -23.22993349
A12: 秦皇岛 | B12: 304 | C12: 100 | D12: 0.3289473684 | G12: 衡水 | H12: 33.88823258 | I12: 34.99514473 | J12: 1.106912152 | N12: 邢台 | O12: 539 | P12: 216 | Q12: 0.400742115 | S12: 邢台 | T12: 47.8112314 | U12: 43.35727273 | V12: -4.453958669
A13: 沧州 | B13: 853 | C13: 233 | D13: 0.2731535756 | G13: 沧州 | H13: 30.27540983 | I13: 33.50405432 | J13: 3.228644487 | N13: 雄安 | O13: 150 | P13: 71 | Q13: 0.4733333333 | S13: 雄安 | T13: 43.87644658 | U13: 54.55711667 | V13: 10.68067009
A14: 承德 | B14: 490 | C14: 64 | D14: 0.1306122449 | G14: 承德 | H14: 22.22253309 | I14: 24.18193027 | J14: 1.959397183 | N14: 张家口 | O14: 363 | P14: 161 | Q14: 0.4435261708 | S14: 张家口 | T14: 44.12274872 | U14: 43.95181512 | V14: -0.170933597
A15: 全省 | B15: 7982 | C15: 3059 | D15: 0.3832372839 | N15: 全省 | O15: 7982 | P15: =SUM(P3:P14) -> 3059 | Q15: 0.3832372839

Sheet 客户端-投诉问题解决满意度
A1: 投诉问题解决满意率（1-23）
A2: 地市 | B2: 投诉问题解决满意率 | C2: 达标值 | D2: 与达标值差距 | O2: 地市 | P2: 投诉满意率 | Q2: 达标值 | R2: 与达标值差距
A3: 衡水 | B3: 0.9375 | C3: 0.92 | D3: 0.0175 | O3: 保定 | P3: 0.9211 | Q3: 0.92 | R3: =P3-Q3 -> 0.0011
A4: 廊坊 | B4: 0.9357 | C4: 0.92 | D4: 0.0157 | O4: 沧州 | P4: 0.9119 | Q4: 0.92 | R4: =P4-Q4 -> -0.0081
A5: 秦皇岛 | B5: 0.9357 | C5: 0.92 | D5: 0.0157 | O5: 承德 | P5: 0.933 | Q5: 0.92 | R5: 0.013
A6: 承德 | B6: 0.933 | C6: 0.92 | D6: 0.013 | O6: 邯郸 | P6: 0.9253 | Q6: 0.92 | R6: 0.0053
A7: 邢台 | B7: 0.9303 | C7: 0.92 | D7: 0.0103 | O7: 衡水 | P7: 0.9375 | Q7: 0.92 | R7: 0.0175
A8: 邯郸 | B8: 0.9253 | C8: 0.92 | D8: 0.0053 | O8: 廊坊 | P8: 0.9357 | Q8: 0.92 | R8: 0.0157
A9: 保定 | B9: 0.9211 | C9: 0.92 | D9: 0.0011 | O9: 秦皇岛 | P9: 0.9357 | Q9: 0.92 | R9: 0.0157
A10: 石家庄 | B10: 0.9154 | C10: 0.92 | D10: -0.0046 | O10: 石家庄 | P10: 0.9154 | Q10: 0.92 | R10: -0.0046
A11: 沧州 | B11: 0.9119 | C11: 0.92 | D11: -0.0081 | O11: 唐山 | P11: 0.902 | Q11: 0.92 | R11: -0.018
A12: 唐山 | B12: 0.902 | C12: 0.92 | D12: -0.018 | O12: 邢台 | P12: 0.9303 | Q12: 0.92 | R12: 0.0103
A13: 张家口 | B13: 0.875 | C13: 0.92 | D13: -0.045 | O13: 雄安 | P13: 0.8485 | Q13: 0.92 | R13: -0.0715
A14: 雄安 | B14: 0.8485 | C14: 0.92 | D14: -0.0715 | O14: 张家口 | P14: 0.875 | Q14: 0.92 | R14: -0.045
A15: 全省 | B15: 0.9173 | C15: 0.92 | D15: -0.0027 | O15: 全省 | P15: 0.9173 | Q15: 0.92 | R15: -0.0027
O19: 满意率=满意/（满意+不满意+一般）

Sheet 客户端-投诉问题解决率
A1: 投诉问题解决率（1-23）
A2: 地市 | B2: 投诉问题解决率 | C2: 达标值 | D2: 与达标值差距 | P2: 地市 | Q2: 投诉问题解决率 | R2: 达标值 | S2: 与达标值差距
A3: 承德 | B3: 0.8969 | C3: 0.85 | D3: 0.0469 | P3: 保定 | Q3: 0.8931 | R3: 0.85 | S3: =Q3-R3 -> 0.0431
A4: 保定 | B4: 0.8931 | C4: 0.85 | D4: 0.0431 | P4: 沧州 | Q4: 0.861 | R4: 0.85 | S4: =Q4-R4 -> 0.011
A5: 邯郸 | B5: 0.8931 | C5: 0.85 | D5: 0.0431 | P5: 承德 | Q5: 0.8969 | R5: 0.85 | S5: 0.0469
A6: 邢台 | B6: 0.8826 | C6: 0.85 | D6: 0.0326 | P6: 邯郸 | Q6: 0.8931 | R6: 0.85 | S6: 0.0431
A7: 衡水 | B7: 0.8815 | C7: 0.85 | D7: 0.0315 | P7: 衡水 | Q7: 0.8815 | R7: 0.85 | S7: 0.0315
A8: 秦皇岛 | B8: 0.8733 | C8: 0.85 | D8: 0.0233 | P8: 廊坊 | Q8: 0.8437 | R8: 0.85 | S8: -0.0063
A9: 沧州 | B9: 0.861 | C9: 0.85 | D9: 0.011 | P9: 秦皇岛 | Q9: 0.8733 | R9: 0.85 | S9: 0.0233
A10: 石家庄 | B10: 0.8506 | C10: 0.85 | D10: 0.0006 | P10: 石家庄 | Q10: 0.8506 | R10: 0.85 | S10: 0.0006
A11: 廊坊 | B11: 0.8437 | C11: 0.85 | D11: -0.0063 | P11: 唐山 | Q11: 0.8304 | R11: 0.85 | S11: -0.0196
A12: 唐山 | B12: 0.8304 | C12: 0.85 | D12: -0.0196 | P12: 邢台 | Q12: 0.8826 | R12: 0.85 | S12: 0.0326
A13: 张家口 | B13: 0.8062 | C13: 0.85 | D13: -0.0438 | P13: 雄安 | Q13: 0.7941 | R13: 0.85 | S13: -0.0559
A14: 雄安 | B14: 0.7941 | C14: 0.85 | D14: -0.0559 | P14: 张家口 | Q14: 0.8062 | R14: 0.85 | S14: -0.0438
A15: 全省 | B15: 0.8597 | C15: 0.85 | D15: 0.0097 | P15: 全省 | Q15: 0.8597 | R15: 0.85 | S15: 0.0097

Sheet 客户端-投诉问题响应率
A1: 投诉问题响应率（1-23）
A2: 地市 | B2: 投诉问题响应率 | C2: 达标值 | D2: 与达标值差距 | M2: 地市 | N2: 投诉问题响应率 | O2: 达标值 | P2: 与达标值差距
A3: 廊坊 | B3: 0.9847 | C3: 0.99 | D3: -0.0053 | M3: 保定 | N3: 0.9641 | O3: 0.99 | P3: =N3-O3 -> -0.0259
A4: 衡水 | B4: 0.9837 | C4: 0.99 | D4: -0.0063 | M4: 沧州 | N4: 0.9697 | O4: 0.99 | P4: =N4-O4 -> -0.0203
A5: 邯郸 | B5: 0.9802 | C5: 0.99 | D5: -0.0098 | M5: 承德 | N5: 0.9789 | O5: 0.99 | P5: -0.0111
A6: 承德 | B6: 0.9789 | C6: 0.99 | D6: -0.0111 | M6: 邯郸 | N6: 0.9802 | O6: 0.99 | P6: -0.0098
A7: 秦皇岛 | B7: 0.9767 | C7: 0.99 | D7: -0.0133 | M7: 衡水 | N7: 0.9837 | O7: 0.99 | P7: -0.0063
A8: 邢台 | B8: 0.9737 | C8: 0.99 | D8: -0.0163 | M8: 廊坊 | N8: 0.9847 | O8: 0.99 | P8: -0.0053
A9: 沧州 | B9: 0.9697 | C9: 0.99 | D9: -0.0203 | M9: 秦皇岛 | N9: 0.9767 | O9: 0.99 | P9: -0.0133
A10: 唐山 | B10: 0.9667 | C10: 0.99 | D10: -0.0233 | M10: 石家庄 | N10: 0.9641 | O10: 0.99 | P10: -0.0259
A11: 保定 | B11: 0.9641 | C11: 0.99 | D11: -0.0259 | M11: 唐山 | N11: 0.9667 | O11: 0.99 | P11: -0.0233
A12: 石家庄 | B12: 0.9641 | C12: 0.99 | D12: -0.0259 | M12: 邢台 | N12: 0.9737 | O12: 0.99 | P12: -0.0163
A13: 张家口 | B13: 0.9569 | C13: 0.99 | D13: -0.0331 | M13: 雄安 | N13: 0.9032 | O13: 0.99 | P13: -0.0868
A14: 雄安 | B14: 0.9032 | C14: 0.99 | D14: -0.0868 | M14: 张家口 | N14: 0.9569 | O14: 0.99 | P14: -0.0331
A15: 全省 | B15: 0.9693 | C15: 0.99 | D15: -0.0207 | M15: 全省 | N15: 0.9693 | O15: 0.99 | P15: -0.0207

Sheet text
A1: 2023年4月截至23日移动网投诉情况统计： 管理端-移网质量类：投诉率：石家庄、承德、雄安、张家口、沧州、衡水、唐山未达到目标值，石家庄、雄安、承德排名靠后；重复投诉率：唐山、沧州、廊坊增长较快。 客户端-移网网络体验：投诉问题解决满意率：雄安、张家口、唐山较低，与达标值差距较大；投诉问题解决率：雄安、张家口、唐山较低，与达标值差距较大；投诉问题响应率：雄安、张家口、石家庄较低，与达标值差距较大。 投诉处理时长、超时工单概况：超时工单：雄安、石家庄、张家口分公司超时工单占比较高，石家庄、唐山、邯郸超时工单数量较多。平均处理时长：本月相对较长的地市为雄安、石家庄、张家口；与3月比雄安时长增幅较大。
